bitfinex/quotes_SOLUSD_20251007
["timestamp","ask_amount","ask_price","bid_price","bid_amount"]
[1759855238713,4.45573229,224.43,224.4,32.6]
[1759855239914,15.59506303,224.43,224.4,32.6]
[1759855240108,11.13933074,224.43,224.33,34.72]
[1759855240327,11.13933074,224.43,224.35,0.72]
[1759855244716,15.59506303,224.43,224.35,0.72]
[1759855245516,15.59506303,224.43,224.35,5.17727593]
[1759855245714,11.85781184,224.47,224.36,0.72]
[1759855245921,11.13781184,224.47,224.36,0.72]
[1759855246226,15.5929787,224.46,224.36,0.72]
[1759855246730,15.5929787,224.46,224.37,32.58]
[1759855246933,15.5929787,224.46,224.38,0.72]
[1759855247838,4.45513677,224.46,224.38,0.72]
[1759855248935,4.45513677,224.46,224.38,5.17662668]
[1759855249115,4.45513677,224.46,224.39,0.72]
[1759855249534,15.5929787,224.46,224.39,0.72]
[1759855249742,18.26836121,224.46,224.36,0.72]
[1759855249948,1.95538251,224.44,224.33,34.72]
[1759855250240,4.04337169,224.43,224.34,33.3]
[1759855250412,3.32337169,224.42,224.34,33.3]
[1759855250616,4.04337169,224.42,224.35,0.72]
[1759855250824,0.72,224.42,224.35,0.72]
[1759855251023,4.4561294,224.41,224.35,0.72]
[1759855251644,4.4561294,224.41,224.35,5.17732034]
[1759855251848,4.4561294,224.41,224.35,0.72]
[1759855252429,4.4561294,224.41,224.33,34.72]
[1759855252430,4.04923067,224.4,224.33,34.72]
[1759855252629,1.95538251,224.38,224.33,34.72]
[1759855252949,3.32983171,224.37,224.34,32.58]
[1759855253134,4.45632798,224.4,224.34,32.58]
[1759855253334,3.32952976,224.39,224.35,0.72]
[1759855253551,1.95538251,224.48,224.35,0.72]
[1759855253752,20.8,224.46,224.35,0.72]
[1759855254047,3.32893778,224.45,224.35,0.72]
[1759855254233,3.32893778,224.44,224.35,0.72]
[1759855254548,3.32893778,224.43,224.35,0.72]
[1759855254942,4.45593084,224.42,224.35,5.17712295]
[1759855255130,0.72,224.44,224.36,0.72]
[1759855255330,3.32974256,224.43,224.36,0.72]
[1759855256228,0.72,224.42,224.33,34.72]
[1759855256427,4.05021189,224.41,224.34,32.58]
[1759855256632,4.05021189,224.4,224.34,32.58]
[1759855256849,4.45672519,224.38,224.34,32.58]
[1759855257355,5.17651488,224.4,224.34,33.27]
[1759855257538,4.45613702,224.41,224.34,33.27]
[1759855257931,5.17613702,224.41,224.34,33.27]
[1759855258131,3.3303735,224.4,224.34,32.58]
[1759855259060,3.3303735,224.4,224.35,0.69]
[1759855259266,0.72,224.49,224.35,0.69]
[1759855259562,3.32935166,224.48,224.35,0.69]
[1759855259726,3.32935166,224.47,224.35,0.69]
[1759855259930,21.52,224.49,224.35,0.69]
[1759855260158,7.78420458,224.48,224.35,16.29062401]
[1759855260329,4.4548841,224.48,224.36,0.69]
[1759855260525,15.5917337,224.48,224.36,0.69]
[1759855260754,4.04939977,224.47,224.36,0.69]
[1759855260931,0.72,224.47,224.36,0.69]
[1759855261435,3.32924294,224.46,224.36,0.69]
[1759855261633,0.72,224.45,224.37,32.58]
[1759855262342,4.45553377,224.44,224.38,5.14672519]
[1759855262535,0.72,224.43,224.34,0.69]
[1759855262736,3.32977402,224.42,224.35,32.56]
[1759855263342,0.72,224.43,224.35,32.56]
[1759855263540,4.45513677,224.46,224.36,0.69]
[1759855263753,11.13618997,224.5,224.36,0.69]
[1759855264049,7.78351456,224.49,224.36,0.69]
[1759855264231,7.78383311,224.48,224.37,15.5992334]
[1759855264432,3.32897316,224.47,224.38,0.69]
[1759855264737,4.45485995,224.48,224.38,0.69]
[1759855264939,0.72,224.47,224.38,0.69]
[1759855265148,0.72,224.47,224.39,32.56]
[1759855265351,5.17498357,224.47,224.4,4.45632798]
[1759855266134,0.72,224.47,224.4,4.45632798]
[1759855266338,0.72,224.47,224.4,5.14632798]
[1759855266856,5.17496658,224.47,224.4,5.14632798]
[1759855267263,4.45533526,224.45,224.39,32.56]
[1759855267460,4.45533526,224.45,224.33,34.72]
[1759855267461,0.72,224.44,224.37,0.69]
[1759855267760,0.72,224.44,224.38,32.56]
[1759855268063,3.33038707,224.43,224.38,32.56]
[1759855268260,0.72,224.42,224.38,32.56]
[1759855269154,5.17603001,224.42,224.38,32.56]
[1759855269367,5.17566262,224.44,224.38,33.25]
[1759855269566,3.33166553,224.43,224.38,32.56]
[1759855269953,3.33166553,224.43,224.36,0.69]
[1759855270146,4.05166553,224.43,224.37,32.56]
[1759855270338,0.72,224.43,224.37,32.56]
[1759855271752,5.17586732,224.43,224.37,32.56]
[1759855272233,5.17586732,224.43,224.36,0.69]
[1759855272551,3.33205461,224.42,224.37,32.56]
[1759855272751,0.72,224.42,224.37,32.56]
[1759855272940,15.59519806,224.43,224.37,32.56]
[1759855273148,3.3320547,224.42,224.37,33.25]
[1759855273747,4.4561294,224.41,224.37,33.25]
[1759855274461,4.45533526,224.45,224.38,0.69]
[1759855274656,6.6660259,224.44,224.38,0.69]
[1759855274835,3.33301295,224.43,224.38,0.69]
[1759855275039,4.45533526,224.45,224.38,0.69]
[1759855275239,3.33301335,224.44,224.38,0.69]
[1759855275439,3.33301335,224.43,224.38,0.69]
[1759855275646,4.45573229,224.43,224.38,0.69]
[1759855276649,4.45553377,224.44,224.38,0.69]
[1759855276849,3.33313165,224.43,224.37,32.56]
[1759855277050,3.33313165,224.42,224.37,32.56]
[1759855277264,3.33313165,224.41,224.37,32.56]
[1759855277568,16.3143682,224.44,224.37,33.25]
[1759855277867,3.33345757,224.43,224.37,33.25]
[1759855278047,4.05345757,224.42,224.37,32.56]
[1759855278250,3.33345757,224.41,224.37,32.56]
[1759855278548,3.33345757,224.41,224.33,34.72]
[1759855278549,16.31714794,224.4,224.33,34.72]
[1759855278755,7.10954343,224.39,224.33,34.72]
[1759855278951,20.8,224.37,224.34,32.56]
[1759855279253,20.8,224.4,224.34,33.25]
[1759855279448,3.33333557,224.39,224.34,33.25]
[1759855279670,3.33333557,224.39,224.35,0.69]
[1759855279968,3.33333557,224.39,224.34,32.56]
[1759855280160,3.33333557,224.39,224.35,0.69]
[1759855280947,4.45672519,224.38,224.34,32.56]
[1759855281147,4.45672519,224.38,224.34,33.25]
[1759855281371,4.45672519,224.38,224.34,32.56]
[1759855281575,4.45672519,224.38,224.34,33.25]
[1759855281762,4.45672519,224.38,224.34,32.56]
[1759855281975,15.59853818,224.38,224.34,32.56]
[1759855282263,0.72,224.37,224.35,32.56]
[1759855282468,15.59853818,224.38,224.32,0.2]
[1759855282676,15.59853818,224.38,224.33,32.54]
[1759855282850,16.31853818,224.38,224.33,32.54]
[1759855283162,4.45649045,224.4,224.34,0.69]
[1759855283344,3.33219064,224.39,224.34,0.69]
[1759855283545,4.05219064,224.39,224.33,32.54]
[1759855283742,3.33219064,224.38,224.33,32.54]
[1759855283966,3.33219064,224.38,224.33,33.23]
[1759855284168,8.23254054,224.4,224.33,33.23]
[1759855284360,3.33193545,224.39,224.33,33.23]
[1759855284672,4.45652658,224.39,224.33,33.23]
[1759855284845,23.85605009,224.35,224.32,0.2]
[1759855285053,7.1087687,224.34,224.33,32.54]
[1759855285259,10.87647521,224.33,224.32,0.2]
[1759855285456,17.98524391,224.33,224.32,32.74]
[1759855285775,38.78524391,224.33,224.32,32.74]
[1759855286076,38.78524391,224.33,224.32,0.2]
[1759855286265,35.72919382,224.33,224.32,32.74]
[1759855286472,43.24296244,224.33,224.32,32.74]
[1759855286992,40.18691235,224.33,224.32,32.74]
[1759855287479,39.91024383,224.33,224.32,32.74]
[1759855287678,36.85419374,224.33,224.32,32.74]
[1759855287855,39.91024383,224.33,224.32,32.74]
[1759855288056,36.85419374,224.33,224.32,32.74]
[1759855288283,39.91024383,224.33,224.32,32.74]
[1759855288687,43.2356771,224.33,224.32,32.74]
[1759855288861,25.42863365,224.33,224.32,32.74]
[1759855289283,2.60354723,224.33,224.32,33.45]
[1759855289463,3.69055221,224.44,224.32,37.90791726]
[1759855289666,11.14061603,224.41,224.33,0.71]
[1759855289893,11.57647521,224.4,224.33,0.71]
[1759855290098,11.57647521,224.4,224.34,32.54]
[1759855290293,11.57647521,224.4,224.33,0.71]
[1759855290487,15.59784303,224.39,224.35,32.54]
[1759855290668,15.59784303,224.39,224.36,32.54]
[1759855290864,0.7,224.38,224.37,32.54]
[1759855291070,11.57647521,224.38,224.37,32.54]
[1759855291265,11.57647521,224.38,224.32,0.2]
[1759855291473,10.87647521,224.37,224.33,32.54]
[1759855291780,20.8,224.36,224.33,32.54]
[1759855292103,4.45732114,224.35,224.33,32.54]
[1759855292685,15.60062401,224.35,224.32,0.2]
[1759855292895,37.10062401,224.35,224.33,32.54]
[1759855293081,36.40062401,224.35,224.33,32.54]
[1759855293491,37.10062401,224.35,224.33,32.54]
[1759855293675,36.40062401,224.35,224.33,32.54]
[1759855293873,31.67647521,224.33,224.32,0.2]
[1759855294094,36.13419374,224.33,224.32,0.2]
[1759855294298,36.83419374,224.33,224.32,32.74]
[1759855294528,39.89024383,224.33,224.32,32.74]
[1759855294875,10.87647521,224.32,224.26,34.74]
[1759855295094,10.87647521,224.32,224.27,32.54]
[1759855295282,11.57647521,224.32,224.27,32.54]
[1759855295584,0.7,224.31,224.27,32.54]
[1759855295790,0.7,224.3,224.27,32.54]
[1759855295997,4.45851353,224.29,224.27,32.54]
[1759855296192,0.7,224.28,224.26,34.74]
[1759855296510,36.40479735,224.29,224.27,32.54]
[1759855296821,20.8,224.25,224.23,0.2]
[1759855296986,20.8,224.24,224.23,0.2]
[1759855297308,20.8,224.24,224.23,18.1]
[1759855297507,20.8,224.25,224.23,18.1]
[1759855297688,0.7,224.24,224.23,18.1]
[1759855298088,4.45950767,224.24,224.23,18.1]
[1759855298319,4.45950767,224.24,224.23,18.81]
[1759855298621,4.45950767,224.24,224.23,18.1]
[1759855298819,25.25950767,224.24,224.23,18.1]
[1759855299199,36.83598288,224.24,224.23,18.1]
[1759855299433,39.89203297,224.24,224.23,1e-08]
[1759855299710,20.8,224.21,224.2,0.2]
[1759855300312,36.13657957,224.21,224.2,0.2]
[1759855300690,36.83657957,224.21,224.2,0.2]
[1759855300906,36.83657957,224.21,224.2,28.8]
[1759855301693,39.89262966,224.21,224.2,1e-08]
[1759855302006,43.20262601,224.21,224.2,1e-08]
[1759855303288,39.89262966,224.21,224.2,1e-08]
[1759855304388,36.83657957,224.21,224.2,1e-08]
[1759855304583,4.46010436,224.21,224.2,1e-08]
[1759855308995,4.46010436,224.21,224.2,0.70000001]
[1759855309513,4.46010436,224.21,224.2,1e-08]
[1759855310611,4.45990545,224.22,224.2,1e-08]
[1759855311391,4.45970488,224.24,224.21,0.7]
[1759855311797,4.45970488,224.24,224.22,0.7]
[1759855312005,10.87647521,224.26,224.23,0.7]
[1759855312211,10.87647521,224.26,224.2,1e-08]
[1759855312212,4.45912611,224.26,224.24,0.7]
[1759855312410,20.8,224.26,224.24,0.7]
[1759855312591,4.4593088,224.25,224.22,0.7]
[1759855312793,4.4593088,224.25,224.23,0.7]
[1759855313295,15.60758081,224.25,224.24,32.54]
[1759855313902,15.60758081,224.25,224.2,0.70000001]
[1759855314210,15.60758081,224.25,224.21,32.54]
[1759855314593,4.4593088,224.25,224.21,33.24]
[1759855315013,4.4593088,224.25,224.21,32.54]
[1759855315311,4.4593088,224.25,224.22,0.7]
[1759855315492,23.85605009,224.23,224.2,1e-08]
[1759855315692,13.9325253,224.22,224.21,32.54]
[1759855315915,14.6325253,224.22,224.21,32.54]
[1759855317022,18.39243075,224.22,224.21,32.54]
[1759855318323,19.06243075,224.22,224.21,32.54]
[1759855318505,19.06243075,224.22,224.2,1e-08]
[1759855318811,19.06243075,224.22,224.21,32.54]
[1759855320611,19.06243075,224.22,224.2,1e-08]
[1759855320913,15.33638066,224.22,224.21,32.54]
[1759855321219,20.84778637,224.22,224.21,32.54]
[1759855321399,20.84778637,224.22,224.2,1e-08]
[1759855321597,6.36252338,224.21,224.2,1e-08]
[1759855322106,31.30168123,224.21,224.2,1e-08]
[1759855322303,34.60936722,224.21,224.2,1e-08]
[1759855322507,31.30168123,224.21,224.2,1e-08]
[1759855323200,31.30168123,224.21,224.18,32.54]
[1759855323201,20.8,224.19,224.18,32.54]
[1759855323520,25.2,224.16,224.15,0.2]
[1759855323707,28.25605009,224.16,224.15,0.2]
[1759855323897,24.52605009,224.16,224.15,0.2]
[1759855324315,3.72605009,224.16,224.15,0.2]
[1759855324508,21.21999482,224.16,224.15,1e-08]
[1759855324710,21.21999482,224.16,224.09,0.2]
[1759855324711,20.8,224.12,224.09,0.2]
[1759855324896,3.05605009,224.11,224.09,0.2]
[1759855325311,7.51814459,224.11,224.09,0.2]
[1759855325515,7.51814459,224.11,224.1,35.63]
[1759855325923,7.51814459,224.11,224.1,68.17]
[1759855326410,7.51814459,224.11,224.1,67.48]
[1759855326812,7.51814459,224.11,224.1,68.17]
[1759855327112,25.26191295,224.12,224.1,68.17]
[1759855327321,25.26191295,224.12,224.11,0.69]
[1759855327520,4.4609002,224.17,224.11,0.69]
[1759855328604,4.4609002,224.17,224.12,32.52]
[1759855328831,18.66920081,224.17,224.13,0.69]
[1759855329024,15.61315072,224.17,224.14,0.69]
[1759855329435,11.15225052,224.17,224.14,0.69]
[1759855329929,4.46070122,224.18,224.15,0.69]
[1759855330138,4.46047393,224.2,224.16,0.69]
[1759855330516,4.46009319,224.22,224.16,0.69]
[1759855331427,15.60920613,224.23,224.16,0.69]
[1759855332077,18.66525622,224.23,224.16,0.69]
[1759855332334,20.8,224.23,224.16,0.69]
[1759855332712,20.8,224.23,224.16,5.15109662]
[1759855332926,20.8,224.23,224.17,0.69]
[1759855333126,20.8,224.23,224.18,32.52]
[1759855333328,20.8,224.23,224.18,33.21]
[1759855333528,4.45990545,224.22,224.18,33.21]
[1759855336445,5.12990545,224.22,224.18,32.52]
[1759855336617,20.8,224.19,224.14,0.69]
[1759855336817,20.8,224.19,224.15,33.21]
[1759855337320,20.8,224.19,224.11,0.69]
[1759855337321,2.63048354,224.18,224.11,0.69]
[1759855337522,1.96048354,224.17,224.12,32.52]
[1759855337725,2.63048354,224.17,224.12,0.69]
[1759855337924,0.67,224.16,224.13,32.52]
[1759855338115,1.96048354,224.18,224.13,32.52]
[1759855338317,0.67,224.17,224.13,32.52]
[1759855338527,4.46070122,224.18,224.13,32.52]
[1759855338822,4.46070122,224.18,224.14,0.69]
[1759855339125,4.46070122,224.18,224.15,0.69]
[1759855339719,20.8,224.2,224.16,0.69]
[1759855339922,4.45990545,224.22,224.16,0.69]
[1759855340116,4.45969534,224.24,224.16,0.69]
[1759855340334,6.6521951,224.23,224.16,0.69]
[1759855340539,4.45969534,224.24,224.16,0.69]
[1759855340840,4.45990545,224.22,224.16,5.15098921]
[1759855341046,4.45990545,224.22,224.17,0.69]
[1759855341344,4.45990545,224.22,224.18,0.69]
[1759855341538,4.45990545,224.22,224.19,32.5]
[1759855341843,4.45990545,224.22,224.19,33.19]
[1759855342032,4.45944332,224.25,224.2,0.69]
[1759855342232,6.6545689,224.24,224.21,0.69]
[1759855342544,4.45944332,224.25,224.21,0.69]
[1759855342844,6.65435578,224.24,224.21,0.69]
[1759855343142,32.61806341,224.26,224.19,32.5]
[1759855343143,20.8,224.26,224.22,0.69]
[1759855343353,20.8,224.26,224.23,0.69]
[1759855343554,20.8,224.26,224.24,33.19]
[1759855343864,25.25912891,224.26,224.24,32.5]
[1759855344226,4.458116,224.31,224.25,0.69]
[1759855344527,7.32103522,224.3,224.24,32.5]
[1759855344841,21.47,224.31,224.24,33.19]
[1759855345033,6.6509803,224.3,224.24,33.19]
[1759855345345,37.073406,224.31,224.24,33.19]
[1759855345545,6.64892918,224.3,224.24,32.5]
[1759855345728,0.67,224.3,224.24,32.5]
[1759855345935,3.32451004,224.29,224.24,32.5]
[1759855346141,3.99451004,224.29,224.24,32.5]
[1759855346446,0.67,224.29,224.25,32.5]
[1759855346618,21.49,224.28,224.12,10.87647521]
[1759855346819,18.2566725,224.27,224.14,10.87647521]
[1759855347036,20.8,224.24,224.15,0.66]
[1759855347444,21.49,224.24,224.16,32.5]
[1759855347741,20.8,224.24,224.17,0.66]
[1759855348639,4.45970655,224.23,224.17,0.66]
[1759855349039,18.25945646,224.23,224.15,0.66]
[1759855349229,18.25945646,224.23,224.18,32.5]
[1759855349539,0.69,224.22,224.18,32.5]
[1759855349743,15.60897292,224.23,224.18,32.5]
[1759855349955,0.69,224.22,224.18,32.5]
[1759855350124,4.46010436,224.21,224.18,32.5]
[1759855350532,4.46010436,224.21,224.13,4.46150065]
[1759855350747,0.69,224.22,224.14,33.14]
[1759855350930,4.45970655,224.23,224.15,33.14]
[1759855351132,4.45970655,224.23,224.16,0.66]
[1759855351326,20.8,224.21,224.1,0.2]
[1759855351550,1.96048354,224.19,224.13,0.66]
[1759855351743,22.76048354,224.19,224.13,0.66]
[1759855351947,23.45048354,224.19,224.13,0.66]
[1759855352254,20.8,224.15,224.11,33.14]
[1759855352449,20.8,224.15,224.12,0.66]
[1759855352828,20.8,224.15,224.11,32.48]
[1759855353034,20.8,224.15,224.11,33.14]
[1759855353235,20.8,224.15,224.12,0.66]
[1759855354552,4.46149727,224.14,224.11,32.48]
[1759855354760,4.46149727,224.14,224.11,33.14]
[1759855355531,4.46149727,224.14,224.11,32.48]
[1759855355756,4.46050225,224.19,224.12,0.66]
[1759855356059,0.69,224.18,224.12,0.66]
[1759855357137,4.4609002,224.17,224.11,32.48]
[1759855357550,4.4609002,224.17,224.11,33.14]
[1759855360342,0.72,224.16,224.11,32.48]
[1759855360541,4.46129823,224.15,224.11,32.48]
[1759855360744,4.46129823,224.15,224.12,0.68]
[1759855361539,4.4609002,224.17,224.11,32.48]
[1759855361762,5.1809002,224.17,224.11,32.48]
[1759855361960,0.72,224.16,224.11,32.48]
[1759855362152,0.72,224.15,224.11,32.48]
[1759855362964,0.72,224.14,224.1,0.2]
[1759855363146,0.72,224.13,224.11,32.48]
[1759855363853,5.18176282,224.13,224.11,32.48]
[1759855365245,4.46176282,224.13,224.11,32.48]
[1759855365446,5.18176282,224.13,224.11,32.48]
[1759855365790,0.72,224.13,224.11,32.48]
[1759855366454,0.72,224.15,224.11,32.48]
[1759855366761,0.72,224.14,224.11,32.48]
[1759855367269,0.72,224.13,224.11,32.48]
[1759855367966,4.46189541,224.12,224.11,32.48]
[1759855369468,5.18189541,224.12,224.11,32.48]
[1759855369977,4.46169633,224.13,224.11,32.48]
[1759855370180,5.18169633,224.13,224.11,32.48]
[1759855370968,0.72,224.12,224.11,32.48]
[1759855371952,4.46169633,224.13,224.1,0.2]
[1759855372259,4.46169633,224.13,224.11,32.46]
[1759855372470,5.18169633,224.13,224.11,32.46]
[1759855373257,4.46169633,224.13,224.11,32.46]
[1759855374866,5.18169633,224.13,224.11,32.46]
[1759855375065,4.46169633,224.13,224.11,32.46]
[1759855375271,5.18169633,224.13,224.11,32.46]
[1759855375469,0.72,224.12,224.11,32.46]
[1759855375851,23.48048354,224.12,224.11,32.46]
[1759855376464,20.8,224.11,224.1,0.2]
[1759855376747,23.45048354,224.11,224.1,32.64]
[1759855376951,27.91257804,224.11,224.1,32.64]
[1759855377174,27.91257804,224.11,224.1,0.2]
[1759855377481,31.23825842,224.11,224.1,32.64]
[1759855377652,34.56322981,224.11,224.1,32.64]
[1759855378071,45.43970502,224.11,224.1,32.64]
[1759855379057,43.47922148,224.11,224.1,32.64]
[1759855379355,25.2620945,224.11,224.1,32.64]
[1759855379679,25.9520945,224.11,224.1,32.64]
[1759855379855,27.91257804,224.11,224.1,32.64]
[1759855380356,31.23597832,224.11,224.1,32.64]
[1759855380558,10.87647521,224.1,224.09,0.2]
[1759855380878,19.48373549,224.1,224.09,0.2]
[1759855381175,24.6360291,224.1,224.09,0.2]
[1759855381351,22.67554556,224.1,224.09,0.2]
[1759855381547,24.6360291,224.1,224.09,0.2]
[1759855381752,22.67554556,224.1,224.09,32.64]
[1759855382279,24.6360291,224.1,224.09,32.64]
[1759855382993,16.02876882,224.1,224.09,32.64]
[1759855383157,17.98925236,224.1,224.09,32.64]
[1759855383358,17.29925236,224.1,224.09,32.64]
[1759855383583,25.26229361,224.1,224.09,32.64]
[1759855384160,27.91277715,224.1,224.09,32.64]
[1759855384366,25.95229361,224.1,224.09,32.64]
[1759855384560,27.91277715,224.1,224.09,32.64]
[1759855384966,38.78925236,224.1,224.09,32.64]
[1759855385157,42.10913834,224.1,224.09,32.64]
[1759855385352,36.13876882,224.1,224.09,32.64]
[1759855385557,38.78925236,224.1,224.09,32.64]
[1759855386088,27.91277715,224.1,224.09,32.64]
[1759855387480,25.26229361,224.1,224.09,32.64]
[1759855388357,27.22277715,224.1,224.09,32.64]
[1759855390285,4.46229361,224.1,224.09,33.31]
[1759855391482,11.15305822,224.16,224.09,33.31]
[1759855391660,6.64637064,224.15,224.1,0.67]
[1759855391996,15.61415743,224.16,224.1,0.67]
[1759855392155,15.61415743,224.16,224.09,32.64]
[1759855392156,17.57464097,224.16,224.11,0.67]
[1759855392478,18.26464097,224.16,224.11,0.67]
[1759855392683,18.26464097,224.16,224.12,0.67]
[1759855392876,1.96048354,224.15,224.13,32.42]
[1759855393180,29.40893066,224.14,224.13,32.42]
[1759855393391,40.97540587,224.14,224.13,32.42]
[1759855393563,45.43690314,224.14,224.13,32.42]
[1759855394273,10.87647521,224.13,224.09,0.2]
[1759855394593,22.76048354,224.1,224.09,0.2]
[1759855394881,29.41133403,224.1,224.09,0.2]
[1759855395062,30.10133403,224.1,224.09,0.2]
[1759855395458,30.10133403,224.1,224.09,32.62]
[1759855395681,27.45085049,224.1,224.09,32.62]
[1759855395869,20.8,224.1,224.09,32.62]
[1759855396077,25.26229361,224.1,224.09,32.62]
[1759855396401,34.5701177,224.1,224.09,32.62]
[1759855397061,35.67575956,224.1,224.09,32.62]
[1759855397278,34.98575956,224.1,224.09,32.62]
[1759855398870,35.67575956,224.1,224.09,32.62]
[1759855399071,34.98575956,224.1,224.09,32.62]
[1759855399980,27.45734055,224.1,224.09,33.29]
[1759855400167,4.46129823,224.15,224.09,33.29]
[1759855400367,6.65745464,224.14,224.1,0.67]
[1759855400668,4.46189541,224.12,224.09,32.62]
[1759855400973,4.46189541,224.12,224.09,33.29]
[1759855401400,20.8,224.11,224.09,33.29]
[1759855401602,20.8,224.11,224.09,32.62]
[1759855401763,4.46189541,224.12,224.1,32.4]
[1759855401970,6.66006232,224.11,224.1,32.4]
[1759855402873,11.12215682,224.11,224.1,32.4]
[1759855403090,14.18883611,224.11,224.1,32.4]
[1759855403674,14.87883611,224.11,224.1,32.4]
[1759855404082,14.18883611,224.11,224.1,32.4]
[1759855404625,20.8,224.13,224.1,33.07]
[1759855404766,4.4611207,224.16,224.11,0.67]
[1759855404968,6.66230622,224.15,224.12,0.67]
[1759855405284,6.66230622,224.14,224.12,0.67]
[1759855405487,20.8,224.14,224.12,0.67]
[1759855405682,29.55584374,224.17,224.12,0.67]
[1759855405902,3.0661254,224.15,224.1,32.4]
[1759855406081,0.69,224.13,224.11,32.4]
[1759855406279,6.66331258,224.12,224.09,0.2]
[1759855406479,6.66331258,224.11,224.1,32.4]
[1759855406890,31.92540708,224.11,224.1,32.4]
[1759855407879,27.46331258,224.11,224.1,32.4]
[1759855408284,3.33165629,224.11,224.1,33.09]
[1759855408495,4.46109921,224.16,224.1,33.09]
[1759855408675,6.66621822,224.15,224.11,0.69]
[1759855408884,11.12771549,224.14,224.11,0.69]
[1759855409197,3.33310911,224.13,224.11,0.69]
[1759855409891,7.7948734,224.13,224.12,0.69]
[1759855410197,7.79504298,224.13,224.12,0.69]
[1759855410494,11.12854558,224.13,224.12,0.69]
[1759855411804,4.46176429,224.13,224.12,0.69]
[1759855413089,11.80913123,224.13,224.12,32.38]
[1759855413291,11.12913123,224.13,224.12,32.38]
[1759855413800,3.74156368,224.21,224.12,32.38]
[1759855413801,4.42156368,224.23,224.12,33.07]
[1759855414021,3.33327616,224.22,224.12,36.84189541]
[1759855414311,0.68,224.24,224.12,47.99663394]
[1759855414613,20.8,224.21,224.12,32.38]
[1759855414781,3.0661254,224.19,224.13,32.38]
[1759855415077,4.01084881,224.18,224.13,32.38]
[1759855415279,0.68,224.18,224.13,32.38]
[1759855415504,4.4609002,224.17,224.13,32.38]
[1759855416078,4.4609002,224.17,224.14,32.36]
[1759855416991,4.46061318,224.19,224.14,32.36]
[1759855417206,25.26061318,224.19,224.14,32.36]
[1759855417906,25.94061318,224.19,224.14,32.36]
[1759855418302,4.4602823,224.21,224.14,32.36]
[1759855418895,15.61054321,224.21,224.14,32.36]
[1759855419096,3.0661254,224.15,224.09,0.2]
[1759855419417,3.0661254,224.14,224.1,32.36]
[1759855419582,0.71,224.14,224.1,32.36]
[1759855420107,21.51,224.14,224.1,32.36]
[1759855420888,4.46169633,224.13,224.11,32.36]
[1759855421092,5.17169633,224.13,224.11,32.36]
[1759855421505,0.71,224.19,224.11,32.36]
[1759855421686,0.71,224.2,224.11,32.36]
[1759855421888,3.0661254,224.18,224.11,32.36]
[1759855422190,3.0661254,224.15,224.09,0.2]
[1759855422506,3.7761254,224.14,224.1,32.36]
[1759855422711,0.71,224.14,224.1,32.36]
[1759855423013,20.8,224.13,224.1,32.36]
[1759855423506,20.8,224.13,224.09,0.2]
[1759855423713,25.97124902,224.16,224.1,32.34]
[1759855424408,37.12399705,224.16,224.1,32.34]
[1759855424601,40.19012245,224.16,224.1,32.34]
[1759855425714,3.32819842,224.15,224.1,32.34]
[1759855426014,0.71,224.15,224.1,32.34]
[1759855426521,36.41399705,224.16,224.1,32.34]